Cogmind - Beta 13 @@@ ROGUE MODE // 2024.03.06 @ 14:47:06 // Winter2022/Polymind Player: Minty Result: Destroyed self via exploding Nuclear Reactor Performance ------------- Evolutions (0) 0 Regions Visited (1) 200 Robots Destroyed (9) 45 Value Destroyed (100) 100 Prototype IDs (2) 40 Alien Tech Used (0) 0 Bonus (690) 690 TOTAL SCORE: 455 Bonus ------- Polymind Skill 690 Cogmind --------- Core Integrity 0/250 Matter 0/0 Energy 200/200 System Corruption 8% Temperature Cool (0) Movement Walking (120) Location -10/Materials Parts ------- > --- POWER (1) -------- Ion Engine > --- PROPULSION (2) --- Aluminum Leg Aluminum Leg > --- UTILITY (1) ------ Heat Sink > --- WEAPON (1) ------- Small Laser > --- INVENTORY (1) ---- (None) Peak State ------------ > --- POWER ------------ Ion Engine > --- PROPULSION ------- Aluminum Leg Aluminum Leg > --- UTILITY ---------- Heat Sink > --- WEAPON ----------- Small Laser > --- INVENTORY -------- (None) [Rating: 5] Favorites ----------- Power Ion Engine Engine Ion Engine Propulsion Aluminum Leg Leg Aluminum Leg Utility Heat Sink Device Heat Sink Weapon Small Laser Energy Gun Small Laser Build | -11 -10 ------- Run | Yrd Mat Slots Evolved . | . . Power . | . . Propulsion . | . . Utility . | . . Weapon . | . . Parts Attached . | . . Power . | . . Engine . | . . Core . | . . Reactor . | . . Propulsion . | . . Treads . | . . Leg . | . . Wheel . | . . Hover . | . . Flight . | . . Utility . | . . Device . | . . Storage . | . . Processor . | . . Hackware . | . . Protection . | . . Artifact . | . . Weapon . | . . Energy Gun . | . . Energy Cannon . | . . Ballistic Gun . | . . Ballistic Cannon . | . . Launcher . | . . Special Weapon . | . . Impact Weapon . | . . Slashing Weapon . | . . Piercing Weapon . | . . Special Melee Weapon . | . . Unidentified Prototypes . | . . Parts Lost 5 | . 5 Power 1 | . 1 Propulsion 2 | . 2 Utility 1 | . 1 Weapon 1 | . 1 Highest Loss Streak 3 | . 3 To Critical Strikes . | . . Average Slot Usage (%) 53 | . 53 Engine 9 | . 9 Leg 22 | . 22 Device 7 | . 7 Energy Gun 13 | . 13 Naked Turns 80 | . 80 Heaviest Build 7 | . 7 Greatest Support 20 | 3 20 Greatest Overweight (x) . | . . Average Overweight (x) . | . . Largest Inventory Capacity 1 | . 1 Average Capacity . | . . Most Carried . | . . Average Carried . | . . Final Capacity 1 | . 1 Final Carried . | . . Class Distribution -------------------- 70% | Grunt 29% | Cogmind Dominant Class ---------------- Grunt | -10/Materials Resources | -11 -10 ----------- Run | Yrd Mat Matter Collected . | . . Remotely . | . . Salvage Created 151 | . 151 Parts 19 | . 19 Haulers Intercepted . | . . Recyclers Shooed . | . . Parts Field Recycled . | . . Retrieved Matter . | . . Parts Self-Destructed . | . . Prevented . | . . Kills | -11 -10 ------- Run | Yrd Mat Combat Hostiles Destroyed 9 | . 9 Melee 1 | . 1 Guns 8 | . 8 Classes Destroyed 1 | . 1 Swarmer 9 | . 9 Best Kill Streak 6 | . 6 Combat Bots Only 6 | . 6 Max Kills in Single Turn 1 | . 1 Gunslinging . | . . Exploded . | . . Melee 1 | . 1 Uniques/NPCs Destroyed . | . . Combat | -11 -10 -------- Run | Yrd Mat Hostile Shots Fired 94 | . 94 Missed 28 | . 28 Damage Taken 668 | . 668 Core 318 | . 318 Absorbed by Shields . | . . Core Remaining (%) 100 | 100 . Volleys Fired 28 | . 28 Largest 1 | . 1 Hottest 40 | . 40 Shots Fired 28 | . 28 Gun 28 | . 28 Cannon . | . . Launcher . | . . Special . | . . Kinetic . | . . Thermal 28 | . 28 Explosive . | . . Electromagnetic . | . . Robot Hit Streak 3 | . 3 Robot Miss Streak 4 | . 4 Penetration Max . | . . Secondary Targets . | . . Shots Hit Robots 14 | . 14 Core Hits 10 | . 10 Critical Kills . | . . Critical Parts Destroyed . | . . Critical Strikes . | . . Melee Attacks . | . . Impact . | . . Slashing . | . . Piercing . | . . Sneak Attacks . | . . Combat Hostiles . | . . Follow-up Attacks . | . . Damage Inflicted 222 | . 222 Guns 176 | . 176 Cannons . | . . Explosions . | . . Melee . | . . Ramming 46 | . 46 Kinetic . | . . Thermal 176 | . 176 Explosive . | . . Electromagnetic . | . . Impact . | . . Slashing . | . . Piercing . | . . Highest Corruption 8 | . 8 Average Corruption 7 | . 7 Corruption Purged . | . . Corruption Blocked . | . . Effects 3 | . 3 Heat Flow Errors 2 | . 2 Energy Discharges 1 | . 1 Overload Shots . | . . Overflow Damage . | . . Projectiles . | . . Explosions . | . . Melee . | . . Knockbacks . | . . Impact . | . . Kinetic . | . . Secondary . | . . Self-Inflicted Damage 128 | . 128 Shots 1 | . 1 Rammed 9 | . 9 Targets Rammed 11 | . 11 Kicked 2 | . 2 Crushed . | . . Highest Temperature 251 | . 251 Average Temperature 115 | . 115 Received Heat Transfer 18 | . 18 Siege Activations . | . . Robots Corrupted . | . . Combat Hostiles . | . . Parts Fried . | . . Impact Corruptions . | . . Robots Melted . | . . Combat Hostiles . | . . Parts Melted 1 | . 1 Heat Transferred 400 | . 400 Parts Sabotaged . | . . Parts Stolen . | . . Parts Stripped . | . . Power Chain Reactions . | . . Alert | -11 -10 ------- Run | Yrd Mat Peak Influence 299 | . 299 Initial . | . . Average 153 | . 153 Maximum Alert Level 1 | . 1 Low Security (%) 51 | . 51 Level 1 48 | . 48 Level 2 . | . . Level 3 . | . . Level 4 . | . . Level 5 . | . . High Security . | . . Max Security . | . . Squads Dispatched 3 | . 3 Investigation 3 | . 3 Extermination . | . . Reinforcement . | . . Assault . | . . Garrison . | . . Intercept . | . . Searches Triggered . | . . Construction Impeded . | . . Haulers Reinforced . | . . Active Scanning Responses . | . . Cargo Convoy Interrupts . | . . Stealth | -11 -10 --------- Run | Yrd Mat Distress Signals . | . . Communications Jammed . | . . Distress Signals . | . . Times Spotted 12 | . 12 Peak Tracking Total 7 | . 7 Tactical Retreats . | . . Traps | -11 -10 ------- Run | Yrd Mat Traps Triggered . | . . Indirectly . | . . Trap Hack Attempts . | . . Triggered . | . . Disarmed . | . . Reprogrammed . | . . Reused . | . . Traps Extracted . | . . Installed . | . . Triggered . | . . Objects Rigged 8 | . 8 Exploded 1 | . 1 Machines | -11 -10 ---------- Run | Yrd Mat Machines Disabled 1 | . 1 Max in Single Turn 1 | . 1 Machines Repaired . | . . Machines Dismantled . | . . Machines Sabotaged . | . . Overloaded Fab Kills . | . . Hacking | -11 -10 --------- Run | Yrd Mat Machines Accessed 5 | . 5 Terminals 5 | . 5 Fabricators . | . . Repair Stations . | . . Recycling Units . | . . Scanalyzers . | . . Garrison Access . | . . Total Hacks 16 | . 16 Successful 11 | . 11 Failed 5 | . 5 Catastrophic . | . . Database Lockouts . | . . Manual 13 | . 13 Terminals 16 | . 16 Fabricators . | . . Repair Stations . | . . Recycling Units . | . . Scanalyzers . | . . Garrison Access . | . . Terminal Hacks 4 | . 4 Prototype ID Bank 1 | . 1 Maintenance Status 1 | . 1 Patrol Status 1 | . 1 Zone Layout 1 | . 1 Fabricator Hacks . | . . Repair Station Hacks . | . . Recycling Unit Hacks . | . . Scanalyzer . | . . Garrison Access Hacks . | . . Unauthorized Hacks 7 | . 7 Terminals 7 | . 7 Botnet 4 | . 4 Detonate 2 | . 2 Sabotage 1 | . 1 Fabricators . | . . Repair Stations . | . . Recycling Units . | . . Scanalyzers . | . . Garrison Access . | . . Data Cores Recovered . | . . Used . | . . Hacking Detections 4 | . 4 Full Trace Events 2 | . 2 Feedback Events . | . . Feedback Blocked . | . . Robot Schematics Acquired . | . . Robots Built . | . . Authchips . | . . Time . | . . Total Robot Build Rating . | . . Part Schematics Acquired . | . . Parts Built . | . . Authchips . | . . Time . | . . Total Part Build Rating . | . . Parts Repaired . | . . Time . | . . Parts Recycled . | . . Recycled Matter . | . . Retrieved Matter . | . . Retrieved Components . | . . Parts Scanalyzed . | . . Part Schematics Acquired . | . . Parts Damaged . | . . Bothacking | -11 -10 ------------ Run | Yrd Mat Used RIF Installer . | . . Robots Hacked 2 | . 2 Non-combat . | . . Combat 2 | . 2 Robot Hacks Applied 2 | . 2 find_shortcuts 2 | . 2 Relay Couplers Released . | . . Fabnet Peak Effective % . | . . Robots Rewired . | . . Allies Hacked . | . . Hacks Repelled . | . . Allies | -11 -10 -------- Run | Yrd Mat Total Allies . | . . Largest Group . | . . Highest-Rated Group . | . . Highest-Rated Ally . | . . Total Orders . | . . Ally Attacks . | . . Total Damage . | . . Kills . | . . Allies Corrupted . | . . Allies Melted . | . . Intel | -11 -10 ------- Run | Yrd Mat Robot Analysis Total 1 | . 1 Derelict Logs Recovered . | . . Drone Launches . | . . Drone Recoveries . | . . Exploration | -11 -10 ------------- Run | Yrd Mat Turns Passed 275 | . 275 Spaces Moved 264 | 1 263 Core 157 | 1 156 Treads . | . . Legs 107 | . 107 Wheels . | . . Hover . | . . Flight . | . . Fastest Speed 50 | 50 50 Average Speed 78 | 50 78 Slowest Speed 120 | 50 120 Overloaded Moves . | . . Propulsion Burnouts . | . . Robots Hopped . | . . Cave-ins Triggered . | . . Exploration Rate (%) 32 | 2 62 Regions Visited 1 Branch Regions . Pre-discovered Areas . | . . Known Exits Taken . | . . Unknown Exits Taken 1 | 1 . Scrap Searched . | . . Spaces Dug . | . . Terrain Destroyed . | . . Melee . | . . Projectile . | . . AOE . | . . Terrain Rammed . | . . Walls Destroyed . | . . Machines Disabled . | . . Actions | -11 -10 --------- Run | Yrd Mat Total 304 | . 304 Wait 2 | . 2 Move 263 | . 263 Hop . | . . Pick Up . | . . Fast Attach . | . . Attach . | . . Detach . | . . Swap . | . . Drop . | . . Fire 28 | . 28 Melee . | . . Ram 9 | . 9 Kick 2 | . 2 Crush . | . . Escape Stasis . | . . Rewire . | . . Trap . | . . Miscellaneous . | . . Route ------- -11/Scrapyard -10/Materials (discovered 3 exits: [*Mat x2] / [*Min]) History --------- Turn | Location | Event 1 | -11/Scrapyard | Discovered new exit (range 0) 1 | -11/Scrapyard | Entered Materials 60 | -10/Materials | Discovered new exit (range 16) 173 | -10/Materials | Lost 3 parts (1p1n1u) 189 | -10/Materials | Core integrity fell below 50% 226 | -10/Materials | Discovered new exit (range 11) 249 | -10/Materials | Discovered new exit (range 15) 253 | -10/Materials | Core integrity fell below 20% 276 | -10/Materials | Destroyed self via exploding Nuclear Reactor Last Messages --------------- Trojan loaded successfully. Testing... Scanning machine control network... Found 5 applicable machines. AKB16PFDX8: Nuclear Reactor KS38KKBEHM: Nuclear Reactor 9X8A7358G2: Neutrino Reactor UX26OXO2VX: Neutrino Reactor 04ZT8XT40N: Nuclear Reactor Infected machine control systems. >>Enumerate(Patrols) Retrieving latest reported positions... No active patrol squads found. 00269_ Connecting with Terminal... >>Force(Sabotage) SYSTEM_VULNERABLE[Nuclear Reactor] NETWORK_OVERLOAD_FAIL 00269_ ALERT: Suspicious activity at Terminal M006. Dispatching Investigation squad. 00276_ Nuclear Reactor detonated. Map ----- +----------------------------------------------------+ | ??# #???????# #=""" ## #??????? | | ### #???????# #%[ ## #??????? | | = #???????# [%#+####### #??????? | | *% #???????# %**=#?????# #??????? | | [ #???????# %%%% #?????# #??????? | | *%= #???????# % #?#####+#####??? | | #???????# #?# #??? | | " ##???????# #?# #??? | | " #????????# #?# #??? | | #????????# #?# """ """ #??? | | #????????# #?# """ """ #??? | | #????????# #?# """ """ #??? | | "" #????????# #?# #??? | | "" #????????# #?# #??? | | "" #####????# #?####+######??? | | ==#????# #### #?????? | | ==#????# |#?????? | | ]]#????# #?????? | | ]]#????# / #?????? | | [[#????############ =#?????? | | ###### [[#??????########### ##?????? | | ??????####??????# """ # #??????? | | ????????????????# "T" + +??????? | | ????????????????# g# #??????? | | ????????????????# """ # #??????? | | ????????????????# """ g# #??????? | | ????????????????# """ # #??????? | | ????????????????# # #??????? | | ????????????????# # < #??????? | | ????????????????##""T""#### #??????? | | ?????????????????#"""""#??#####??????? | | ?????????????????#######?????????????? | | ?????????????????????????????????????? | | ?????????????????????????????????????? | | ?????????????????????????????????????? | | | | | | | | | | | | | | | | | | | | | | | | | | | | | | | +----------------------------------------------------+ Best States ------------- Heat Dissipation 25 Energy Generation 15 Energy Capacity 200 Sight Range 16 Terrain Scan Density 10 Evasion (%) 55 Item Schematics ----------------- None Robot Schematics ------------------ None Fabricated ------------ Nothing Alien Tech Used ----------------- None Achievements -------------- None Challenges ------------ None Polymind | -11 -10 ---------- Run | Yrd Mat Hosts 2 | . 2 Combat Hostiles 2 | . 2 Allies . | . . Unique Host Classes 1 | . 1 Average Host Suspicion 83 | . 83 Unsuspicious Activity 14 | . 14 Returns to Shadow . | . . Fuzzy Dispatches . | . . Protomatter Created 12 | . 12 Used 30 | . 30 Decayed 4 | . 4 Highest Spend 15 | . 15 Top 5 Hosts by Kills: G-34 Mercenary (-10/Materials: 9) Game ------ Seed SpacefoldRainbowSpear Manual? 0 Play Time 00:04:09 Cumulative 692.3 hours Start 2024.03.06 @ 14:44:23 End 2024.03.06 @ 14:47:06 Sessions 1 Manual Loads 0 Difficulty Rogue Special Mode Winter2022/Polymind Game No. 718 Rogue 443 Adventurer 123 Explorer 152 Win Type - Total 26 Types 20/0/4/1/0/0/0/1/0 Lore% 81 Gallery% 91 Achievement% 76 Wizard Run 0 Options --------- Layout 0 ASCII 0 Keyboard 1 Movement Numpad Keybinds 0 Fullscreen 2 Font 18/SmallcapsGlow Map View 76x50 Zoom Use 0% Tactical HUD 1 Map Filters NONE Filters NONE Steam 1 RUN: 8404eccf-99c9-4fe1-b3ed-c504621272ee